bitfinex/quotes_SOLUSD_20260310
["timestamp","ask_amount","ask_price","bid_price","bid_amount"]
[1773150422658,40.49191896,86.437,86.358,1.36135357]
[1773150422659,1.34551187,86.409,86.358,1.36135357]
[1773150422956,3.69383402,86.434,86.38,11.06304525]
[1773150422957,12.40855712,86.42,86.38,11.06304525]
[1773150423135,1.34551187,86.419,86.371,1.36135357]
[1773150423343,1.34551187,86.419,86.381,1.36135357]
[1773150423837,11.57166331,86.418,86.391,11.57527983]
[1773150424039,1.36889809,86.433,86.392,1.37261268]
[1773150424253,11.56978896,86.432,86.4,11.06304525]
[1773150424642,12.93860918,86.433,86.4,11.06304525]
[1773150424962,40.49384886,86.433,86.4,11.06304525]
[1773150425133,11.56971109,86.433,86.4,11.06304525]
[1773150425635,1.36889809,86.432,86.392,1.37261268]
[1773150425841,1.36889809,86.419,86.38,12.43565793]
[1773150426168,11.57032443,86.428,86.382,1.37261268]
[1773150426344,11.57032443,86.428,86.381,11.57661985]
[1773150426345,1.36889809,86.427,86.391,1.37261268]
[1773150426844,1.36889809,86.419,86.38,22.63973973]
[1773150427155,1.36889809,86.432,86.4,11.06304525]
[1773150427551,11.56992282,86.431,86.4,11.06304525]
[1773150428334,11.56992282,86.431,86.38,40.51857917]
[1773150428335,1.36889809,86.43,86.393,1.37261268]
[1773150428566,40.49472989,86.431,86.38,11.06304525]
[1773150428567,1.36889809,86.419,86.38,11.06304525]
[1773150429171,11.06304525,86.43,86.39,11.06304525]
[1773150429467,1.36889809,86.431,86.4,11.06304525]
[1773150429665,11.56931359,86.436,86.401,1.37261268]
[1773150429874,9.07562128,86.443,86.42,11.06304525]
[1773150430162,9.07562128,86.443,86.371,179.45838298]
[1773150430163,9.07562128,86.443,86.421,1.37261268]
[1773150430848,11.56845052,86.442,86.421,1.37261268]
[1773150431367,9.07562128,86.443,86.42,11.06304525]
[1773150431543,11.56845052,86.442,86.42,11.06304525]
[1773150432049,11.56845052,86.442,86.416,1.37261268]
[1773150432050,9.07562128,86.443,86.416,1.37261268]
[1773150432443,9.07562128,86.443,86.42,11.06304525]
[1773150433050,11.56845052,86.442,86.42,11.06304525]
[1773150433742,9.07562128,86.443,86.42,11.06304525]
[1773150434162,9.07562128,86.443,86.413,11.57229122]
[1773150434385,1.36889809,86.429,86.394,1.37261268]
[1773150434673,1.36889809,86.429,86.392,11.57509236]
[1773150434674,1.36889809,86.439,86.401,1.37261268]
[1773150435367,11.56898586,86.438,86.41,11.06304525]
[1773150435665,1.36889809,86.439,86.403,1.37261268]
[1773150435966,20.64396161,86.443,86.41,11.06304525]
[1773150436345,20.64396161,86.443,86.402,40.50832156]
[1773150436346,1.36889809,86.439,86.402,11.57380616]
[1773150436753,1.36889809,86.439,86.41,11.06304525]
[1773150436954,20.64396161,86.443,86.411,1.37261268]
[1773150437146,11.56845052,86.442,86.42,22.63443723]
[1773150437359,9.07562128,86.443,86.421,1.37261268]
[1773150437856,9.07562128,86.443,86.43,11.06304525]
[1773150438049,0.2,86.47,86.431,1.37261268]
[1773150438250,11.56483826,86.469,86.441,1.37261268]
[1773150438559,1.36889809,86.46,86.43,12.43565793]
[1773150439266,11.56617587,86.459,86.43,24.00558669]
[1773150439470,11.56617587,86.459,86.405,11.57337435]
[1773150439471,1.25293831,86.439,86.405,11.57337435]
[1773150439670,1.25293831,86.439,86.353,51.14605463]
[1773150439671,11.06304525,86.43,86.399,1.37261268]
[1773150439971,11.06304525,86.43,86.399,12.94677275]
[1773150440267,11.06304525,86.42,86.388,1.37261268]
[1773150440493,11.06304525,86.42,86.38,11.06304525]
[1773150440494,11.06304525,86.42,86.39,1.37261268]
[1773150440666,190.84190192,86.459,86.401,1.37261268]
[1773150440667,11.06304525,86.44,86.401,1.37261268]
[1773150440852,11.06304525,86.45,86.411,1.37261268]
[1773150441272,40.48161555,86.459,86.423,1.37261268]
[1773150441651,11.56617587,86.459,86.431,1.37261268]
[1773150442982,40.48161555,86.459,86.423,1.37261268]
[1773150443768,40.48161555,86.459,86.424,12.94347262]
[1773150444149,11.56617587,86.459,86.43,11.06304525]
[1773150444774,11.56617587,86.459,86.425,1.37261268]
[1773150445169,40.48161555,86.459,86.425,1.37261268]
[1773150445362,40.48161555,86.459,86.381,92.61248654]
[1773150445363,11.56534704,86.466,86.431,1.37261268]
[1773150445567,11.56534704,86.466,86.44,11.06304525]
[1773150446278,11.56534704,86.466,86.441,1.37261268]
[1773150446575,11.76473242,86.47,86.441,1.37261268]
[1773150446874,51.73953897,86.47,86.441,1.37261268]
[1773150447071,11.06304525,86.46,86.43,11.06304525]
[1773150447275,1.28123595,86.459,86.421,1.37261268]
[1773150447475,11.06304525,86.45,86.421,1.37261268]
[1773150447677,11.06304525,86.45,86.411,12.94521339]
[1773150447869,12.34765617,86.43,86.364,1.37261268]
[1773150448069,1.28461092,86.457,86.401,1.37261268]
[1773150448280,1.28461092,86.439,86.401,1.37261268]
[1773150448775,1.28461092,86.449,86.411,1.37261268]
[1773150449273,11.06304525,86.45,86.411,1.37261268]
[1773150449578,40.48208378,86.458,86.421,1.37261268]
[1773150450159,11.56630965,86.458,86.431,1.37261268]
[1773150450564,12.50545088,86.47,86.431,1.37261268]
[1773150450769,11.56483826,86.469,86.44,12.39013754]
[1773150450964,11.56483826,86.469,86.44,1.37261268]
[1773150451477,40.47693392,86.469,86.44,1.37261268]
[1773150451861,40.47693392,86.469,86.431,1.37261268]
[1773150452491,11.56483826,86.469,86.441,1.37261268]
[1773150453686,0.2,86.47,86.45,11.01752486]
[1773150453982,11.21752486,86.49,86.442,11.56845052]
[1773150453983,0.2,86.49,86.46,12.52970986]
[1773150454167,11.56268802,86.486,86.46,12.52970986]
[1773150454368,11.56268802,86.486,86.451,1.512185]
[1773150454685,11.56268802,86.486,86.46,11.01752486]
[1773150455186,11.56268802,86.486,86.451,1.512185]
[1773150455388,12.32760797,86.48,86.441,1.512185]
[1773150455571,11.56350096,86.479,86.45,11.01752486]
[1773150455766,40.47225337,86.479,86.45,11.01752486]
[1773150456089,28.90578047,86.488,86.451,1.512185]
[1773150456386,1.31310009,86.487,86.451,1.512185]
[1773150456885,11.56216397,86.489,86.46,11.01752486]
[1773150457088,0.2,86.49,86.47,11.01752486]
[1773150457286,11.56216397,86.489,86.46,12.52970986]
[1773150457471,11.56216397,86.489,86.461,1.512185]
[1773150457670,11.56216397,86.489,86.463,1.512185]
[1773150457869,0.2,86.49,86.471,1.512185]
[1773150458074,11.76207773,86.49,86.471,1.512185]
[1773150458593,0.2,86.49,86.471,1.512185]
[1773150459099,11.56216397,86.489,86.471,1.512185]
[1773150459300,0.2,86.49,86.471,1.512185]
[1773150459471,11.01752486,86.51,86.481,1.512185]
[1773150459793,1.32192155,86.52,86.49,11.01752486]
[1773150459794,11.55815485,86.519,86.49,11.01752486]
[1773150459990,11.55815485,86.519,86.482,11.56309983]
[1773150459991,11.55815485,86.519,86.491,1.512185]
[1773150460197,28.89354876,86.525,86.491,1.512185]
[1773150460198,52.08,86.529,86.5,11.01752486]
[1773150460374,52.08,86.529,86.491,1.512185]
[1773150460375,11.55695266,86.528,86.491,1.512185]
[1773150460973,40.44933431,86.528,86.491,1.512185]
[1773150461169,1.32765739,86.558,86.52,1.512185]
[1773150461374,40.43484789,86.559,86.511,1.512185]
[1773150461375,1.32765739,86.549,86.511,1.512185]
[1773150461575,11.01752486,86.54,86.51,11.01752486]
[1773150461887,11.01752486,86.54,86.439,46.27536827]
[1773150461888,11.01752486,86.52,86.463,3.69383402]
[1773150462095,11.01752486,86.52,86.481,1.512185]
[1773150462292,40.44419278,86.539,86.481,1.512185]
[1773150462293,11.01752486,86.51,86.481,1.512185]
[1773150462604,86.66612739,86.539,86.46,1.512185]
[1773150462605,11.01752486,86.49,86.46,1.512185]
[1773150462774,11.01752486,86.52,86.441,11.56858435]
[1773150462775,1.4698272,86.479,86.441,11.56858435]
[1773150463493,1.4698272,86.479,86.44,11.01752486]
[1773150463494,11.01752486,86.46,86.425,11.57072606]
[1773150463796,11.01752486,86.46,86.372,46.31101395]
[1773150463797,41.95144275,86.459,86.421,11.57126161]
[1773150464097,41.95144275,86.459,86.404,11.57353826]
[1773150464098,1.4698272,86.439,86.404,11.57353826]
[1773150464275,1.4698272,86.439,86.41,11.01752486]
[1773150464473,1.4698272,86.449,86.404,11.57353826]
[1773150464692,11.01752486,86.44,86.41,11.01752486]
[1773150464886,40.48161555,86.459,86.393,1.512185]
[1773150464887,11.01752486,86.43,86.393,1.512185]
[1773150465098,3.69383402,86.456,86.358,40.52896083]
[1773150465099,12.48735206,86.41,86.358,40.52896083]
[1773150465301,11.01752486,86.4,86.36,11.01752486]
[1773150465476,11.01752486,86.4,86.358,40.52896083]
[1773150465477,1.4698272,86.399,86.358,11.57970309]
[1773150465672,3.69383402,86.432,86.314,40.54962114]
[1773150465673,11.01752486,86.38,86.314,40.54962114]
[1773150465883,13.04752318,86.373,86.33,11.01752486]
[1773150466082,12.44356406,86.37,86.33,11.01752486]
[1773150466377,1.4260392,86.383,86.34,11.01752486]
[1773150466581,11.57648584,86.382,86.35,11.01752486]
[1773150466895,11.57648584,86.382,86.299,46.35002639]
[1773150466896,12.44356406,86.38,86.34,11.01752486]
[1773150467393,1.4260392,86.379,86.34,11.01752486]
[1773150467597,1.4260392,86.369,86.33,11.01752486]
[1773150467792,40.51770044,86.382,86.33,11.01752486]
[1773150467793,1.4260392,86.359,86.331,11.58332464]
[1773150467996,11.01752486,86.38,86.34,11.01752486]
[1773150468299,11.01752486,86.38,86.341,1.4835759]
[1773150468300,1.4260392,86.379,86.341,1.4835759]
[1773150468593,22.59440567,86.38,86.331,11.58332464]
[1773150468594,1.4260392,86.369,86.331,11.58332464]
[1773150468900,11.57688081,86.38,86.32,11.01752486]
[1773150468901,1.4260392,86.359,86.32,11.01752486]
[1773150469094,40.5187655,86.38,86.31,11.01752486]
[1773150469095,1.4260392,86.339,86.31,11.01752486]
[1773150469793,1.4260392,86.339,86.252,4.82477569]
[1773150469794,1.4260392,86.319,86.257,1.4835759]
[1773150469997,1.4260392,86.319,86.25,28.98539969]
[1773150469998,1.4260392,86.317,86.27,11.01752486]
[1773150470301,1.4260392,86.309,86.27,11.01752486]
[1773150470680,40.54774206,86.318,86.261,1.4835759]
[1773150470681,1.4260392,86.299,86.261,1.4835759]
[1773150471078,1.4260392,86.299,86.26,11.01752486]
[1773150471284,1.4260392,86.299,86.257,11.59325861]
[1773150471285,12.44356406,86.29,86.257,11.59325861]
[1773150471497,1.4260392,86.302,86.27,11.01752486]
[1773150471697,11.01752486,86.3,86.27,11.01752486]
[1773150471897,11.01752486,86.31,86.281,11.5900372]
[1773150472193,11.01752486,86.31,86.28,11.01752486]
[1773150472194,11.58627721,86.309,86.28,11.01752486]
[1773150472401,11.58627721,86.309,86.273,1.4835759]
[1773150472694,11.58426393,86.324,86.28,12.50110076]
[1773150472899,11.01752486,86.32,86.281,1.4835759]
[1773150473297,28.95869096,86.33,86.291,1.4835759]
[1773150473298,11.01752486,86.33,86.291,1.4835759]
[1773150473604,11.01752486,86.33,86.272,133.29933233]
[1773150473605,13.00697542,86.349,86.31,11.01752486]
[1773150474104,13.00697542,86.349,86.311,11.58600873]
[1773150474292,13.00697542,86.349,86.32,11.01752486]
[1773150474293,1.4260392,86.349,86.32,11.01752486]
[1773150474486,32.63868985,86.372,86.3,11.01752486]
[1773150474487,11.01752486,86.34,86.3,11.01752486]
[1773150474802,1.4260392,86.339,86.3,11.01752486]
[1773150475584,40.5336545,86.348,86.311,1.4835759]
[1773150475585,11.58104414,86.348,86.311,1.4835759]
[1773150476108,12.44356406,86.35,86.32,11.01752486]
[1773150476287,24.02438477,86.35,86.32,11.01752486]
[1773150477108,24.02438477,86.35,86.313,1.4835759]
[1773150477404,24.02438477,86.35,86.32,11.01752486]
[1773150477898,1.4260392,86.337,86.3,11.01752486]
[1773150478198,1.4260392,86.337,86.31,11.01752486]
[1773150478409,1.4260392,86.329,86.288,1.4835759]
[1773150478599,11.5823855,86.338,86.3,11.01752486]
[1773150478907,11.01752486,86.33,86.3,11.01752486]
[1773150479287,1.4260392,86.337,86.3,11.01752486]
[1773150479985,11.01752486,86.33,86.298,1.4835759]
[1773150480184,1.4260392,86.335,86.3,11.01752486]
[1773150480403,1.4260392,86.335,86.3,12.50110076]
[1773150480784,1.4260392,86.347,86.311,1.4835759]
[1773150480990,11.58131239,86.346,86.32,11.01752486]
[1773150481192,1.4260392,86.358,86.33,11.01752486]
[1773150481399,11.01752486,86.35,86.32,11.01752486]
[1773150481594,1.4260392,86.349,86.311,1.4835759]
[1773150481887,3.69383402,86.382,86.341,11.58198306]
[1773150481888,12.44356406,86.38,86.341,11.58198306]
[1773150482091,46.27949447,86.432,86.341,11.58198306]
[1773150482092,12.44356406,86.39,86.36,11.01752486]
[1773150482400,24.01763813,86.4,86.36,11.01752486]
[1773150482602,24.01763813,86.4,86.341,11.58198306]
[1773150482603,11.01752486,86.38,86.341,11.58198306]
[1773150482812,1.4260392,86.379,86.341,11.58198306]
[1773150483013,11.01752486,86.39,86.35,11.01752486]
[1773150483194,1.4260392,86.392,86.36,11.01752486]
[1773150483394,46.26859146,86.452,86.37,11.01752486]
[1773150483395,1.4260392,86.403,86.37,11.01752486]
[1773150483594,11.01752486,86.4,86.37,11.01752486]
[1773150483794,11.01752486,86.39,86.36,11.01752486]
[1773150484107,1.53269974,86.397,86.361,11.57930084]
[1773150484404,1.53269974,86.397,86.37,11.01752486]
[1773150484608,1.53269974,86.397,86.361,11.57930084]
[1773150484814,1.53269974,86.397,86.37,11.01752486]
[1773150485004,1.53269974,86.397,86.362,1.48732445]
[1773150485405,1.53269974,86.397,86.37,11.01752486]
[1773150485603,1.53269974,86.397,86.362,1.48732445]
[1773150485986,1.53269974,86.395,86.37,11.01752486]
[1773150486194,1.53269974,86.417,86.38,11.01752486]
[1773150486499,11.01752486,86.41,86.38,11.01752486]
[1773150486694,12.5502246,86.41,86.38,11.01752486]
[1773150487202,12.5502246,86.41,86.371,1.48732445]
[1773150487203,1.53269974,86.409,86.37,11.01752486]
[1773150487592,40.49941564,86.421,86.361,13.06662529]
[1773150487593,1.53269974,86.399,86.361,13.06662529]
[1773150487792,1.53269974,86.399,86.361,11.57930084]
[1773150487994,11.01752486,86.39,86.36,11.01752486]
[1773150488205,11.01752486,86.38,86.355,11.58000528]
[1773150488399,1.53269974,86.389,86.355,11.58000528]
[1773150488797,1.53269974,86.389,86.343,13.06903923]
[1773150488798,11.01752486,86.38,86.343,13.06903923]
[1773150488996,11.01752486,86.38,86.343,40.53600175]
[1773150489224,11.01752486,86.38,86.344,1.48732445]
[1773150489599,11.01752486,86.38,86.35,11.01752486]
[1773150489795,11.01752486,86.38,86.35,12.50484931]
[1773150489997,1.53269974,86.379,86.35,11.01752486]
[1773150490304,11.01752486,86.38,86.35,11.01752486]
[1773150490713,11.01752486,86.36,86.33,11.01752486]
[1773150491115,1.53269974,86.369,86.33,11.01752486]
[1773150491313,1.53269974,86.369,86.329,11.58359299]
[1773150491314,11.01752486,86.36,86.329,11.58359299]
[1773150491626,11.01752486,86.36,86.296,165.3]
[1773150491627,1.53269974,86.339,86.263,1.48732445]
[1773150491794,1.53269974,86.339,86.301,1.48732445]
[1773150492208,11.5823855,86.338,86.303,1.48732445]
[1773150492405,11.01752486,86.33,86.303,1.48732445]
[1773150492609,11.5823855,86.338,86.303,1.48732445]
[1773150492610,40.53834927,86.338,86.303,1.48732445]
[1773150492913,11.01752486,86.33,86.301,11.5873413]
[1773150493110,12.5502246,86.33,86.301,11.5873413]
[1773150493312,11.01752486,86.33,86.301,13.07466575]
[1773150493833,11.01752486,86.35,86.311,1.48732445]
[1773150493999,11.01752486,86.35,86.301,40.55571941]
[1773150494000,11.01752486,86.35,86.321,1.48732445]
[1773150494205,46.30165528,86.39,86.301,40.55571941]
[1773150494206,1.53269974,86.369,86.331,1.48732445]
[1773150494412,11.57829422,86.369,86.331,1.48732445]
[1773150494621,11.57829422,86.369,86.33,11.01752486]
[1773150494622,11.57829422,86.369,86.34,1.48732445]
[1773150495201,11.57829422,86.369,86.34,12.50484931]
[1773150495500,11.01752486,86.36,86.34,1.48732445]
[1773150495818,11.57829422,86.369,86.34,1.48732445]
[1773150496018,13.11099396,86.369,86.33,11.01752486]
[1773150496223,13.11099396,86.369,86.331,1.48732445]
[1773150496715,13.11099396,86.369,86.33,11.01752486]
[1773150496716,13.11099396,86.369,86.34,11.01752486]
[1773150496898,13.11099396,86.369,86.333,1.48732445]
[1773150496899,11.01752486,86.39,86.36,12.50484931]
[1773150497099,11.01752486,86.4,86.361,1.48732445]
[1773150497311,11.01752486,86.41,86.371,1.48732445]
[1773150497921,11.01752486,86.4,86.371,1.48732445]
[1773150498618,1.53269974,86.399,86.36,11.01752486]
[1773150498810,1.53269974,86.389,86.36,11.01752486]
[1773150499009,11.01752486,86.39,86.36,11.01752486]
[1773150499199,11.01752486,86.37,86.343,11.58158245]
[1773150499522,1.53269974,86.379,86.343,11.58158245]
[1773150499903,40.51019698,86.398,86.351,1.48732445]
[1773150499904,11.01752486,86.39,86.351,1.48732445]
[1773150500104,11.57291392,86.409,86.371,1.48732445]
[1773150500567,11.57058167,86.427,86.391,1.48732445]
[1773150500830,11.01752486,86.41,86.381,1.48732445]
[1773150501116,1.53269974,86.416,86.381,1.48732445]
[1773150501319,1.53269974,86.416,86.39,11.01752486]
[1773150501526,1.53269974,86.429,86.4,11.01752486]
[1773150501826,11.01752486,86.42,86.39,11.01752486]
[1773150502124,11.01752486,86.42,86.341,46.32793226]
[1773150502125,11.01752486,86.41,86.38,11.01752486]
[1773150502332,1.53269974,86.41,86.381,11.57661985]
[1773150502501,1.53269974,86.419,86.381,13.0639443]
[1773150502700,11.57166331,86.418,86.39,11.01752486]
[1773150502906,11.57032443,86.428,86.391,1.48732445]
[1773150503123,11.01752486,86.46,86.381,40.51816949]
[1773150503124,46.24374862,86.499,86.41,11.01752486]
[1773150503421,46.24374862,86.499,86.421,1.48732445]
[1773150503422,11.56617587,86.459,86.421,1.48732445]
[1773150503628,40.48161555,86.459,86.421,1.48732445]
[1773150503829,11.01752486,86.46,86.43,11.01752486]
[1773150504129,11.01752486,86.46,86.431,1.48732445]
[1773150504130,22.58360795,86.46,86.431,1.48732445]
[1773150504346,1.53269974,86.464,86.431,1.48732445]
[1773150504522,11.5643033,86.473,86.44,12.50484931]
[1773150504723,11.5643033,86.473,86.4,11.01752486]
[1773150504724,11.56375399,86.478,86.45,11.01752486]
[1773150504940,1.53269974,86.478,86.442,11.56845052]
[1773150505248,1.53269974,86.478,86.429,1.48732445]
[1773150505249,1.53269974,86.469,86.43,22.58758155]
[1773150505436,1.53269974,86.469,86.391,46.30108169]
[1773150505437,1.53269974,86.449,86.411,1.48732445]
[1773150505627,12.5502246,86.46,86.421,1.48732445]
[1773150505827,1.53269974,86.459,86.421,1.48732445]
[1773150506745,1.53269974,86.459,86.43,11.01752486]
[1773150506746,11.56617587,86.459,86.43,11.01752486]
[1773150506926,11.56617587,86.459,86.424,11.57083096]
[1773150507125,11.56617587,86.459,86.421,1.48732445]
[1773150507126,11.01752486,86.45,86.421,1.48732445]
[1773150507326,1.53269974,86.458,86.42,11.01752486]
[1773150507734,11.01752486,86.45,86.42,11.01752486]
[1773150508123,11.01752486,86.43,86.401,1.48732445]
[1773150508323,1.53269974,86.439,86.4,11.01752486]
[1773150508550,12.5502246,86.45,86.411,1.48732445]
[1773150509124,11.01752486,86.44,86.411,1.48732445]
[1773150509326,1.53269974,86.429,86.39,11.01752486]
[1773150509731,1.53269974,86.429,86.387,1.48732445]
[1773150509732,11.56751379,86.449,86.42,12.5118269]
[1773150510243,11.56617587,86.459,86.431,1.48732445]
[1773150510870,1.53269974,86.464,86.431,1.48732445]
[1773150511156,11.02450245,86.46,86.431,13.05719186]
[1773150511346,11.02450245,86.46,86.431,1.48732445]
[1773150511650,1.53269974,86.459,86.421,11.57114211]
[1773150512150,3.69383402,86.492,86.431,1.48732445]
[1773150512151,11.02450245,86.47,86.431,1.48732445]
[1773150512646,11.5643033,86.473,86.441,1.48732445]
[1773150513039,12.55720219,86.47,86.43,11.02450245]
[1773150513232,11.56483826,86.469,86.431,13.05724727]
[1773150513433,12.55720219,86.46,86.431,11.56992282]
[1773150513648,12.55720219,86.46,86.43,11.02450245]
[1773150513952,12.55720219,86.46,86.421,11.57126161]
[1773150514142,1.53269974,86.46,86.43,11.02450245]
[1773150514454,0.2,86.48,86.451,1.56399842]
[1773150514743,1e-08,86.48,86.47,11.02450245]
[1773150514928,1e-08,86.48,86.47,12.58850087]
[1773150515125,11.02450245,86.51,86.473,1.56399842]
[1773150515331,40.45821822,86.509,86.473,1.56399842]
[1773150515530,11.02450245,86.5,86.473,1.56399842]
[1773150516049,1.62483804,86.508,86.473,1.56399842]
[1773150516344,11.02450245,86.49,86.46,1.56399842]
[1773150516546,11.02450245,86.49,86.46,12.58850087]
[1773150516730,1.62483804,86.499,86.46,12.58850087]
[1773150517130,11.02450245,86.49,86.451,1.56399842]
[1773150517345,11.56216397,86.489,86.46,11.02450245]
[1773150517642,1.62483804,86.488,86.452,11.56711238]
[1773150517942,11.02450245,86.52,86.452,11.56711238]
[1773150517943,1.62483804,86.509,86.471,1.56399842]
[1773150518146,11.55895645,86.513,86.452,11.56711238]
[1773150518147,1.62483804,86.499,86.46,12.58850087]
[1773150518331,1.62483804,86.489,86.45,11.02450245]
[1773150518747,1.62483804,86.489,86.451,11.56724618]
[1773150518949,11.02450245,86.48,86.45,11.02450245]
[1773150519243,11.02450245,86.48,86.447,11.567742]
[1773150519244,40.47272138,86.478,86.433,1.56399842]
[1773150519544,1.62483804,86.469,86.43,11.02450245]
[1773150519841,40.47272138,86.478,86.441,1.56399842]
[1773150519842,11.56363468,86.478,86.441,1.56399842]
[1773150520245,11.02450245,86.47,86.441,1.56399842]
[1773150520637,1.62483804,86.477,86.441,1.56399842]
[1773150521350,11.56313209,86.482,86.451,1.56399842]
[1773150521532,11.02450245,86.48,86.451,1.56399842]
[1773150522039,12.64934049,86.48,86.442,13.13244894]
[1773150522347,11.02450245,86.46,86.431,1.56399842]
[1773150522544,11.02450245,86.46,86.419,28.92856477]
[1773150522545,1.62483804,86.469,86.433,1.56399842]
[1773150523245,1.62483804,86.469,86.405,3.69383402]
[1773150523246,40.47225337,86.479,86.441,1.56399842]
[1773150523437,11.02450245,86.46,86.441,1.56399842]
[1773150523633,11.02450245,86.47,86.441,1.56399842]
[1773150523851,11.02450245,86.47,86.43,11.02450245]
[1773150523852,11.02450245,86.46,86.43,11.02450245]
[1773150524157,11.02450245,86.46,86.411,28.93138849]
[1773150524158,11.02450245,86.45,86.413,1.56399842]
[1773150524356,11.02450245,86.45,86.349,46.32362344]
[1773150524357,11.02450245,86.43,86.402,1.56399842]
[1773150524949,11.02450245,86.43,86.402,13.13771283]
[1773150525351,11.02450245,86.46,86.349,46.32362344]
[1773150525352,1.62483804,86.419,86.389,1.56399842]
[1773150525553,1.62483804,86.419,86.381,28.9413692]
[1773150525554,11.57019056,86.429,86.391,1.56399842]
[1773150525941,1.62483804,86.428,86.391,1.56399842]
[1773150526143,11.02450245,86.42,86.391,1.56399842]
[1773150527027,11.57019056,86.429,86.4,11.02450245]
[1773150527231,40.49566696,86.429,86.401,1.66429028]
[1773150527632,11.57019056,86.429,86.402,13.23809644]
[1773150528037,11.57019056,86.429,86.364,46.31527829]
[1773150528038,11.02450245,86.42,86.385,13.24037409]
[1773150528555,40.49566696,86.429,86.401,1.66429028]
[1773150528556,11.57019056,86.429,86.401,1.66429028]
[1773150529353,11.02450245,86.41,86.379,1.66429028]
[1773150529555,11.57300249,86.408,86.379,1.66429028]
[1773150529751,11.02450245,86.4,86.379,1.66429028]
[1773150529951,11.57300249,86.408,86.38,11.02450245]
[1773150530154,11.57300249,86.408,86.379,1.66429028]
[1773150530584,30.47068294,86.429,86.391,1.66429028]
[1773150530851,11.02450245,86.42,86.391,1.66429028]
[1773150531845,11.57093768,86.424,86.393,1.66429028]
[1773150532051,11.02450245,86.42,86.393,1.66429028]
[1773150532355,11.57032573,86.428,86.393,1.66429028]
[1773150533344,11.02450245,86.42,86.393,1.66429028]
[1773150533642,1.54487944,86.419,86.383,1.66429028]
[1773150533837,42.04570102,86.418,86.384,13.24050809]
[1773150534047,3.69383402,86.452,86.391,1.66429028]
[1773150534048,11.02450245,86.43,86.391,1.66429028]
[1773150534245,11.02450245,86.43,86.401,1.66429028]
[1773150534645,22.59457582,86.43,86.401,1.66429028]
[1773150534848,53.06459699,86.43,86.401,1.66429028]
[1773150535156,11.02450245,86.42,86.391,1.66429028]
[1773150536256,11.02450245,86.41,86.38,1.66429028]
[1773150536458,1.54487944,86.418,86.381,1.66429028]
[1773150536660,11.02450245,86.41,86.381,1.66429028]
[1773150536860,11.02450245,86.41,86.331,4.82477569]
[1773150536861,1.54487944,86.409,86.371,1.66429028]
[1773150537867,1.54487944,86.409,86.372,11.57782614]
[1773150538159,11.57300249,86.408,86.373,1.66429028]
[1773150538374,11.57300249,86.408,86.38,11.02450245]
[1773150538572,11.57300249,86.408,86.373,1.66429028]
[1773150538742,40.50550873,86.408,86.373,1.66429028]
[1773150539441,11.57300249,86.408,86.373,1.66429028]
[1773150539655,13.11788193,86.408,86.373,1.66429028]
[1773150539854,13.11788193,86.408,86.38,12.68879273]
[1773150540054,11.57300249,86.408,86.381,11.57661985]
[1773150540371,11.57300249,86.408,86.378,1.66429028]
[1773150540573,11.57300249,86.408,86.381,1.66429028]
[1773150540811,11.57252709,86.412,86.381,1.66429028]
[1773150541072,11.57252709,86.412,86.372,1.66429028]
[1773150541073,11.02450245,86.4,86.372,1.66429028]
[1773150542042,11.02450245,86.4,86.37,22.60252238]
[1773150542249,11.02450245,86.39,86.351,1.66429028]
[1773150542477,11.57286856,86.409,86.371,1.66429028]
[1773150542770,11.57286856,86.409,86.351,98.43545527]
[1773150542771,11.02450245,86.39,86.356,1.66429028]
[1773150543148,1.54487944,86.389,86.356,1.66429028]
[1773150543745,1.58190361,86.399,86.361,1.67124825]
[1773150544164,40.50503997,86.409,86.371,1.67124825]
[1773150544165,11.57398731,86.401,86.371,1.67124825]
[1773150544460,12.60640606,86.42,86.381,1.67124825]
[1773150544669,11.57203242,86.416,86.39,11.02450245]
[1773150545169,11.57067013,86.426,86.391,1.67124825]
[1773150545469,11.57067013,86.426,86.401,1.67124825]
[1773150546158,11.57067013,86.426,86.402,11.57380616]
[1773150546355,11.57067013,86.426,86.403,1.67124825]
[1773150547059,11.57067013,86.426,86.402,11.57380616]
[1773150547370,11.57067013,86.426,86.4,11.02450245]
[1773150547570,11.57067013,86.426,86.398,1.67124825]
[1773150547867,11.57067013,86.426,86.397,11.57445628]
[1773150547868,1.58190361,86.419,86.39,11.02450245]
[1773150548371,13.1535443,86.419,86.391,11.57527983]
[1773150549871,1.58190361,86.418,86.391,11.57527983]
[1773150550474,13.15209417,86.429,86.4,11.02450245]
[1773150550674,11.56970748,86.433,86.401,1.67124825]
[1773150550965,11.56970748,86.433,86.4,11.02450245]
[1773150550966,11.02450245,86.42,86.391,11.57527983]
[1773150551153,1.58190361,86.419,86.391,11.57527983]
[1773150551768,11.02450245,86.41,86.382,11.57648584]
[1773150552078,11.02450245,86.39,86.361,11.57930084]
[1773150552281,1.58190361,86.399,86.362,1.67124825]
[1773150552574,1.58190361,86.399,86.361,40.52755294]
[1773150552575,1.58190361,86.408,86.371,1.67124825]
[1773150552867,11.02450245,86.4,86.371,1.67124825]
[1773150554163,1.58190361,86.408,86.373,1.67124825]
[1773150554555,1.58190361,86.417,86.381,1.67124825]
[1773150554760,11.02450245,86.41,86.381,1.67124825]